bitfinex-derivatives/quotes_SOLF0:USTF0_20250130
["timestamp","ask_amount","ask_price","bid_price","bid_amount"]
[1738253107665,0.02985107,241.52,241.48,4.1408]
[1738253107866,0.02985107,241.52,241.47,0.02624619]
[1738253108068,4.17005107,241.52,241.47,0.02624619]
[1738253108465,0.02985107,241.52,241.47,0.02624619]
[1738253108666,0.02985107,241.52,241.48,4.1408]
[1738253108969,0.02985107,241.52,241.47,11.13042675]
[1738253110466,6.20520878,241.51,241.47,11.13042675]
[1738253111274,6.20520878,241.51,241.47,15.27132675]
[1738253111470,4.17015107,241.52,241.47,15.27132675]
[1738253112172,0.02985107,241.52,241.47,11.13042675]
[1738253112370,0.02985107,241.52,241.48,4.1408]
[1738253112665,0.02985107,241.52,241.5,11.10418056]
[1738253112873,11.10418056,241.71,241.5,11.10418056]
[1738253113073,1.396,241.69,241.6,11.10418056]
[1738253113366,1.396,241.69,241.44,13.67588056]
[1738253113367,6.15106888,241.68,241.63,11.10418056]
[1738253113871,6.15106888,241.68,241.66,4.1377]
[1738253114074,6.17960916,241.68,241.63,11.13360024]
[1738253114268,0.02854028,241.68,241.66,11.10418056]
[1738253114572,0.02854028,241.68,241.67,4.1376]
[1738253115971,2.86761728,241.74,241.72,4.1367]
[1738253116167,5.66913698,241.77,241.72,15.24088056]
[1738253116567,1.4339,241.83,241.72,15.24088056]
[1738253116766,1.4339,241.83,241.66,2.86]
[1738253116767,2.86369135,241.82,241.69,11.10418056]
[1738253116972,2.86369135,241.81,241.69,11.10418056]
[1738253117275,0.0288264,241.78,241.73,0.02881911]
[1738253118064,4.1363,241.75,241.73,0.02881911]
[1738253118871,4.1361,241.76,241.73,0.02881911]
[1738253119374,0.0288264,241.78,241.73,0.02881911]
[1738253119566,4.1362,241.75,241.73,0.02881911]
[1738253120770,4.1373,241.69,241.63,11.10418056]
[1738253121076,2.85488637,241.76,241.63,11.10418056]
[1738253121273,4.1371,241.7,241.63,11.10418056]
[1738253121472,2.85488637,241.76,241.63,11.10418056]
[1738253121769,4.1372,241.7,241.63,11.10418056]
[1738253121972,0.02706308,241.72,241.67,0.02744482]
[1738253122374,4.1374,241.68,241.67,0.02744482]
[1738253122776,0.02706308,241.72,241.57,15.24328056]
[1738253122971,2.85488637,241.71,241.57,15.24328056]
[1738253123171,2.85488637,241.73,241.57,11.10418056]
[1738253123372,4.1381,241.64,241.59,4.139]
[1738253123572,2.85488637,241.71,241.57,11.10418056]
[1738253123770,2.85488637,241.7,241.57,11.10418056]
[1738253123976,0.03130767,241.66,241.57,11.10418056]
[1738253124276,0.03130767,241.66,241.61,0.02833558]
[1738253124474,4.1384,241.62,241.61,0.02833558]
[1738253124867,0.03130767,241.66,241.61,0.02833558]
[1738253125179,0.03130767,241.66,241.61,11.13251614]
[1738253126267,0.03130767,241.66,241.64,4.1381]
[1738253126477,0.03130767,241.66,241.61,11.13251614]
[1738253127574,0.03130767,241.66,241.65,4.1379]
[1738253127874,1.409,241.77,241.64,11.10418056]
[1738253128077,1.3664,241.83,241.74,11.10418056]
[1738253128278,1.3664,241.83,241.79,11.10418056]
[1738253128877,1.3664,241.83,241.76,11.10418056]
[1738253129075,1.39339258,241.83,241.79,0.02778468]
[1738253130175,1.39339258,241.83,241.7,11.10418056]
[1738253130377,11.10418056,241.82,241.67,11.10418056]
[1738253130576,2.7144,241.81,241.67,11.10418056]
[1738253131084,4.1362,241.75,241.68,4.1374]
[1738253131481,0.03079827,241.74,241.69,0.02838261]
[1738253132482,0.03079827,241.74,241.57,12.43408056]
[1738253132684,4.1382,241.64,241.57,5.4691]
[1738253132878,2.85180385,241.73,241.57,4.1392]
[1738253133079,2.85180385,241.72,241.55,17.75100051]
[1738253133274,17.75100051,241.8,241.53,7.39235577]
[1738253133275,4.1388,241.6,241.53,7.39235577]
[1738253133478,2.85219352,241.7,241.53,3.25245577]
[1738253133683,0.0266265,241.65,241.61,0.02698993]
[1738253133882,4.1384,241.62,241.61,0.02698993]
[1738253136188,0.0266265,241.65,241.61,0.02698993]
[1738253136889,0.0266265,241.65,241.63,4.1382]
[1738253137084,0.0266265,241.65,241.61,0.02698993]
[1738253140088,4.1384,241.62,241.61,0.02698993]
[1738253140992,0.0266265,241.65,241.51,17.75100051]
[1738253141191,0.0266265,241.65,241.47,17.75100051]
[1738253141392,2.8571849,241.66,241.47,17.75100051]
[1738253141592,2.8571849,241.65,241.47,17.75100051]
[1738253141893,4.1398,241.54,241.49,4.1406]
[1738253142286,4.16776556,241.54,241.49,4.17242175]
[1738253142690,0.02796556,241.54,241.49,0.03182175]
[1738253142996,0.02796556,241.54,241.51,4.1403]
[1738253143296,0.02796556,241.54,241.5,4.1405]
[1738253143497,0.02796556,241.54,241.49,0.03182175]
[1738253143696,2.8577464,241.6,241.51,17.75100051]
[1738253143896,4.1383,241.64,241.59,4.1388]
[1738253144498,4.1383,241.63,241.59,4.1388]
[1738253144890,4.16757379,241.63,241.59,4.1388]
[1738253145096,0.02927379,241.63,241.59,4.16701555]
[1738253146690,4.16757379,241.63,241.59,4.16701555]
[1738253147389,4.1385,241.62,241.59,0.02821555]
[1738253147589,0.02927379,241.63,241.59,0.02821555]
[1738253148197,4.1385,241.62,241.59,0.02821555]
[1738253148397,0.02927379,241.63,241.59,0.02821555]
[1738253149200,4.1387,241.61,241.59,0.02821555]
[1738253149997,4.1388,241.6,241.59,0.02821555]
[1738253150297,0.02927379,241.63,241.52,4.1401]
[1738253150499,4.139,241.59,241.52,4.1401]
[1738253150699,2.86435826,241.61,241.52,4.1401]
[1738253150899,3.71660524,241.66,241.49,4.1405]
[1738253151100,4.1398,241.55,241.47,17.75100051]
[1738253151599,4.1398,241.55,241.51,4.1403]
[1738253151799,0.02612618,241.53,241.51,4.1403]
[1738253152000,0.02612618,241.53,241.49,0.02679606]
[1738253152202,0.02612618,241.53,241.52,4.1402]
[1738253156901,2.86515616,241.64,241.49,0.02679606]
[1738253157200,3.72109623,241.65,241.59,4.139]
[1738253157397,2.86638322,241.64,241.59,4.139]
[1738253157596,2.86638322,241.63,241.59,4.139]
[1738253157894,3.72109623,241.66,241.59,4.139]
[1738253158097,0.02886036,241.63,241.59,4.16758872]
[1738253158499,0.02886036,241.63,241.59,0.02858872]
[1738253158707,0.02886036,241.63,241.6,4.1387]
[1738253159104,0.02886036,241.63,241.59,0.02858872]
[1738253159606,4.1385,241.62,241.59,0.02858872]
[1738253159805,0.02886036,241.63,241.59,4.16748872]
[1738253160206,4.1385,241.62,241.59,0.02858872]
[1738253160407,2.8674721,241.61,241.44,17.75100051]
[1738253160607,2.8674721,241.6,241.44,17.75100051]
[1738253160807,6.58856833,241.59,241.44,17.75100051]
[1738253161007,2.8674721,241.58,241.49,4.1406]
[1738253161210,4.1394,241.57,241.48,17.75100051]
[1738253161399,1.4447,241.59,241.54,4.1397]
[1738253161605,0.02970495,241.55,241.5,0.03137336]
[1738253162106,0.02970495,241.55,241.54,4.1398]
[1738253163005,4.1383,241.63,241.52,17.75100051]
[1738253163201,4.1383,241.63,241.58,4.139]
[1738253163709,12.42,241.79,241.44,17.75100051]
[1738253163710,5.93673484,241.72,241.62,4.1384]
[1738253163906,2.87030101,241.69,241.62,4.1384]
[1738253164104,7.25133484,241.72,241.56,17.75100051]
[1738253164105,2.87030101,241.68,241.56,17.75100051]
[1738253164308,2.87030101,241.67,241.63,0.03038478]
[1738253164609,4.16726799,241.68,241.63,0.03038478]
[1738253164911,4.1381,241.64,241.63,0.03038478]
[1738253165107,7.01095765,241.64,241.63,0.03038478]
[1738253165810,4.1381,241.64,241.63,0.03038478]
[1738253166512,2.87612223,241.64,241.48,17.75100051]
[1738253166712,2.87612223,241.63,241.48,17.75100051]
[1738253166909,2.87612223,241.62,241.48,17.75100051]
[1738253167108,4.1388,241.6,241.48,17.75100051]
[1738253167411,2.87691423,241.59,241.48,17.75100051]
[1738253167612,5.93673484,241.66,241.48,17.75100051]
[1738253167814,0.02930105,241.56,241.51,0.03162318]
[1738253168513,4.16880105,241.56,241.51,4.17192318]
[1738253168917,4.16880105,241.56,241.52,4.1401]
[1738253169515,0.02930105,241.56,241.52,4.1401]
[1738253169717,0.02930105,241.56,241.51,0.03162318]
[1738253170014,0.02930105,241.56,241.55,4.1397]
[1738253170516,0.02930105,241.56,241.53,4.1398]
[1738253170713,0.02930105,241.56,241.51,0.03162318]
[1738253171707,0.02930105,241.56,241.53,4.1399]
[1738253171907,0.02930105,241.56,241.51,0.03162318]
[1738253174110,0.02930105,241.56,241.55,4.1397]
[1738253175712,3.74823164,241.61,241.52,20.61100051]
[1738253175916,4.1117,241.77,241.58,17.75100051]
[1738253176115,2.88692777,241.76,241.62,17.75100051]
[1738253176328,4.1367,241.73,241.67,4.1375]
[1738253176617,2.88692777,241.72,241.62,17.75100051]
[1738253176818,2.88692777,241.71,241.62,17.75100051]
[1738253177019,2.91614752,241.7,241.65,0.02958062]
[1738253177214,2.88692777,241.69,241.65,0.02958062]
[1738253177417,2.88692777,241.68,241.65,0.02958062]
[1738253177611,0.02921975,241.7,241.65,0.02958062]
[1738253177812,2.89372177,241.69,241.65,0.02958062]
[1738253178122,2.89372177,241.68,241.65,0.02958062]
[1738253178319,0.02921975,241.7,241.67,17.75100051]
[1738253178517,0.02921975,241.7,241.69,4.1373]
[1738253179717,0.02921975,241.7,241.65,0.02958062]
[1738253180123,0.02921975,241.7,241.69,4.1373]
[1738253180725,0.02921975,241.7,241.68,4.1374]
[1738253181122,0.02921975,241.7,241.65,0.02958062]
[1738253181318,7.02233654,241.69,241.65,0.02958062]
[1738253181526,2.88503654,241.68,241.65,0.02958062]
[1738253181727,2.88503654,241.67,241.65,0.02958062]
[1738253181928,7.02283654,241.66,241.65,0.02958062]
[1738253183829,2.88503654,241.66,241.65,0.02958062]
[1738253184728,0.02921975,241.7,241.65,0.02958062]
[1738253185027,2.88126617,241.69,241.65,0.02958062]
[1738253185227,0.02921975,241.7,241.65,0.02958062]
[1738253185427,2.88099225,241.69,241.65,0.02958062]
[1738253185629,0.02921975,241.7,241.65,0.02958062]
[1738253185930,0.02921975,241.7,241.69,4.1373]
[1738253191529,8.2651,241.97,241.68,2.84]
[1738253191735,2.87787175,241.86,241.73,17.75100051]
[1738253191925,2.87787175,241.85,241.69,17.75100051]
[1738253192129,6.47031054,241.84,241.73,4.1366]
[1738253192326,2.87787175,241.83,241.68,2.84]
[1738253192525,2.87787175,241.82,241.76,0.03056928]
[1738253192727,2.90966542,241.81,241.76,0.03056928]
[1738253192930,4.23317175,241.8,241.76,0.03056928]
[1738253193138,4.1359,241.77,241.76,0.03056928]
[1738253193334,7.01377175,241.77,241.76,0.03056928]
[1738253193541,2.87787175,241.77,241.65,17.75100051]
[1738253193836,4.1364,241.75,241.68,4.1374]
[1738253194033,1.3816,241.79,241.65,17.75100051]
[1738253194237,2.8752229,241.78,241.65,17.75100051]
[1738253194430,4.1362,241.75,241.69,4.1371]
[1738253194632,1.3816,241.79,241.65,17.75100051]
[1738253194829,4.1366,241.73,241.7,0.0269291]
[1738253195239,0.02627057,241.74,241.7,0.0269291]
[1738253195640,4.1369,241.71,241.7,0.0269291]
[1738253196036,0.02627057,241.74,241.7,0.0269291]
[1738253196433,4.1368,241.72,241.7,0.0269291]
[1738253196638,0.02627057,241.74,241.7,0.0269291]
[1738253197040,4.1368,241.72,241.7,0.0269291]
[1738253197238,0.02627057,241.74,241.7,0.0269291]
[1738253197439,4.1369,241.71,241.7,0.0269291]
[1738253200543,2.87370818,241.71,241.54,1.3503]
[1738253200744,2.87370818,241.7,241.54,19.10130051]
[1738253200945,4.1385,241.62,241.58,4.1391]
[1738253201145,2.87370818,241.68,241.54,19.10130051]
[1738253201346,2.87370818,241.67,241.54,19.10130051]
[1738253201541,2.87370818,241.66,241.54,17.75100051]
[1738253201741,0.03057083,241.63,241.58,0.03070962]
[1738253202144,4.139,241.59,241.58,0.03070962]
[1738253202845,0.03057083,241.63,241.58,0.03070962]
[1738253203046,2.87459378,241.62,241.5,3.25290703]
[1738253203350,2.87459378,241.61,241.48,1.3503]
[1738253203550,4.1396,241.56,241.51,4.1403]
[1738253203748,17.75100051,241.68,241.51,4.1403]
[1738253203946,2.87387107,241.67,241.48,1.3503]
[1738253204147,4.1393,241.58,241.57,0.02848207]
[1738253204453,7.01317107,241.58,241.57,0.02848207]
[1738253204746,0.02734018,241.62,241.57,0.02848207]
[1738253204747,4.1386,241.61,241.57,0.02848207]
[1738253204945,2.87416477,241.6,241.57,0.02848207]
[1738253205151,2.87436637,241.59,241.57,0.02848207]
[1738253205354,4.139,241.59,241.57,0.02848207]
[1738253205649,0.02734018,241.62,241.43,2.84]
[1738253205946,2.87411738,241.61,241.43,2.84]
[1738253206143,4.1395,241.57,241.52,4.1401]
[1738253206749,4.1386,241.61,241.56,4.1395]
[1738253207048,0.03101571,241.57,241.52,0.03122333]
[1738253207247,4.1385,241.63,241.58,4.139]
[1738253207550,0.02832721,241.57,241.5,17.75100051]
[1738253207752,0.03164505,241.63,241.58,0.02850576]
[1738253207952,7.01419196,241.62,241.53,4.1399]
[1738253208153,0.02977504,241.63,241.58,0.02617047]
[1738253208349,2.87562936,241.62,241.58,0.02617047]
[1738253208555,2.87562936,241.61,241.58,0.02617047]
[1738253208757,2.87562936,241.6,241.58,0.02617047]
[1738253209054,2.87562936,241.59,241.43,2.84]
[1738253209355,3.58952889,241.67,241.52,4.1402]
[1738253209557,2.87514015,241.66,241.52,4.1402]
[1738253209849,2.87514015,241.65,241.52,4.1402]
[1738253210055,2.87514015,241.64,241.52,4.1402]
[1738253210356,4.1394,241.57,241.56,0.02887169]
[1738253210856,4.1391,241.59,241.56,0.02887169]
[1738253211050,0.02674308,241.61,241.56,0.02887169]
[1738253211550,0.02674308,241.61,241.56,4.16817169]
[1738253211750,4.1392,241.58,241.56,0.02887169]
[1738253212658,0.02674308,241.61,241.56,0.02887169]
[1738253212858,4.1393,241.57,241.56,0.02887169]
[1738253216752,7.01631628,241.57,241.56,0.02887169]
[1738253217059,0.02674308,241.61,241.56,0.02887169]
[1738253217360,2.87635241,241.6,241.56,0.02887169]
[1738253217559,2.87635241,241.59,241.56,0.02887169]
[1738253217757,4.1393,241.57,241.56,0.02887169]
[1738253218757,11.10263892,241.57,241.45,11.10263892]
[1738253218959,2.87525353,241.56,241.42,11.10263892]
[1738253219159,11.10263892,241.54,241.39,11.10263892]
[1738253219456,2.87637886,241.53,241.39,11.10263892]
[1738253219662,11.10263892,241.51,241.36,11.10263892]
[1738253219863,2.87637886,241.5,241.36,11.10263892]
[1738253220064,4.1419,241.43,241.41,0.03133614]
[1738253220362,0.02992475,241.46,241.41,0.03133614]
[1738253220559,4.1417,241.43,241.41,0.03133614]
[1738253220760,0.02992475,241.46,241.41,0.03133614]
[1738253221065,2.87486061,241.45,241.32,170.2263271]
[1738253221363,5.68036061,241.44,241.32,170.2263271]
[1738253221557,2.87253642,241.43,241.32,170.2263271]
[1738253221753,2.8055,241.44,241.32,170.2263271]
[1738253221961,2.8718619,241.43,241.32,170.2263271]
[1738253222163,4.1427,241.38,241.32,170.2263271]
[1738253222365,0.03040767,241.4,241.35,0.02749718]
[1738253222763,4.1429,241.37,241.35,0.02749718]
[1738253223467,4.1434,241.33,241.32,170.2263271]
[1738253223658,2.86480393,241.38,241.24,4.1448]
[1738253223855,4.1436,241.33,241.18,144.6952725]
[1738253224061,2.86480393,241.38,241.18,141.8552725]
[1738253224262,2.86480393,241.39,241.18,141.8552725]
[1738253224463,0.02905197,241.31,241.18,141.8552725]
[1738253224657,0.02905197,241.31,241.2,4.1456]
[1738253224862,0.02905197,241.31,241.18,141.8552725]
[1738253225063,0.02905197,241.31,241.24,17.78451312]
[1738253225265,0.02905197,241.31,241.29,4.144]
[1738253227968,5.4769,241.43,241.36,4.1428]
[1738253228169,1.3351,241.43,241.36,4.1428]
[1738253229071,4.17162038,241.42,241.37,0.02638312]
[1738253229363,0.02972038,241.42,241.37,0.02638312]
[1738253231267,0.02972038,241.42,241.41,4.1421]
[1738253232365,1.3631,241.53,241.37,0.02638312]
[1738253232366,4.1401,241.53,241.4,17.78451312]
[1738253232565,1.3748,241.54,241.4,17.78451312]
[1738253233174,2.8573951,241.58,241.4,17.78451312]
[1738253233373,5.6687951,241.59,241.44,17.78451312]
[1738253233573,0.02677623,241.51,241.47,0.02951128]
[1738253234170,0.02677623,241.51,241.5,4.1405]
[1738253234871,4.1389,241.6,241.54,4.1398]
[1738253235274,1.3709,241.66,241.52,17.78451312]
[1738253235769,5.5088,241.66,241.52,17.78451312]
[1738253236176,0.0289947,241.61,241.57,0.03092478]
[1738253236377,0.0289947,241.61,241.58,4.1391]
[1738253237175,0.0289947,241.61,241.57,0.03092478]
[1738253237474,4.1676947,241.61,241.57,0.03092478]
[1738253237668,0.0289947,241.61,241.57,0.03092478]
[1738253238070,4.1391,241.59,241.57,0.03092478]
[1738253238870,4.1391,241.59,241.57,2.478e-05]
[1738253239974,7.00789521,241.59,241.57,2.478e-05]
[1738253240272,4.1391,241.59,241.57,2.478e-05]
[1738253240473,4.1677947,241.61,241.57,2.478e-05]
[1738253240775,0.0289947,241.61,241.57,2.478e-05]
[1738253240970,4.1391,241.58,241.57,2.478e-05]
[1738253241475,7.01175775,241.58,241.57,2.478e-05]
[1738253242470,4.1677947,241.61,241.57,2.478e-05]
[1738253242778,2.87329001,241.6,241.57,2.478e-05]
[1738253242980,0.0289947,241.61,241.57,2.478e-05]
[1738253243273,2.87333169,241.6,241.57,2.478e-05]
[1738253243569,0.0289947,241.61,241.57,2.478e-05]
[1738253243772,4.1675947,241.61,241.57,2.478e-05]
[1738253244077,0.0289947,241.61,241.57,2.478e-05]
[1738253244274,0.0289947,241.61,241.58,4.139]
[1738253244470,0.0289947,241.61,241.57,2.478e-05]
[1738253246075,4.1676947,241.61,241.57,4.13932478]
[1738253246379,0.0289947,241.61,241.57,2.478e-05]
[1738253246872,0.0289947,241.61,241.6,4.1388]
[1738253249480,0.0289947,241.61,241.59,4.139]
[1738253250276,0.0289947,241.61,241.57,2.478e-05]
[1738253251079,0.0289947,241.61,241.57,4.13922478]
[1738253251478,0.0289947,241.61,241.57,2.478e-05]
[1738253252779,4.1391,241.58,241.57,2.478e-05]
[1738253253482,7.01430133,241.58,241.57,2.478e-05]
[1738253254684,4.1408,241.49,241.44,4.1415]
[1738253255678,4.1408,241.49,241.45,4.1413]
[1738253255979,4.1414,241.45,241.44,0.02635155]
[1738253257579,4.16832547,241.49,241.44,0.02635155]
[1738253258075,4.1409,241.48,241.44,0.02635155]
[1738253258281,0.02762547,241.49,241.44,0.02635155]
[1738253258676,0.02762547,241.49,241.44,4.16775155]
[1738253259384,4.1409,241.48,241.44,0.02635155]
[1738253259682,0.02762547,241.49,241.44,0.02635155]
[1738253259880,4.1414,241.45,241.44,0.02635155]
[1738253260079,0.02762547,241.49,241.44,0.02635155]
[1738253260882,4.1412,241.47,241.44,0.02635155]
[1738253261586,4.1412,241.46,241.44,0.02635155]
[1738253262275,0.02762547,241.49,241.44,0.02635155]
[1738253265885,4.1414,241.45,241.44,0.02635155]
[1738253268384,0.02762547,241.49,241.44,0.02635155]
[1738253268585,0.02762547,241.49,241.46,11.11502471]
[1738253268781,0.02762547,241.49,241.44,0.02635155]
[1738253269985,4.1409,241.48,241.45,4.1413]
[1738253270182,0.02762547,241.49,241.45,4.1413]
[1738253271086,4.1409,241.48,241.45,4.1413]
[1738253271389,0.02762547,241.49,241.45,4.1413]
[1738253271893,0.02762547,241.49,241.48,4.1409]
[1738253272590,0.02762547,241.49,241.47,4.141]
[1738253273591,0.02762547,241.49,241.44,0.02635155]
[1738253273592,0.02762547,241.49,241.46,4.1412]
[1738253274493,0.02762547,241.49,241.44,0.02635155]
[1738253274893,0.02762547,241.49,241.47,4.1409]
[1738253275289,0.02762547,241.49,241.44,0.02635155]
[1738253275489,4.1413,241.46,241.44,0.02635155]
[1738253275792,0.02762547,241.49,241.44,0.02635155]
[1738253275992,2.88228782,241.48,241.44,0.02635155]
[1738253276188,0.02762547,241.49,241.44,0.02635155]
[1738253276386,4.1414,241.45,241.44,0.02635155]
[1738253276592,7.02365519,241.45,241.44,0.02635155]
[1738253277992,2.88297693,241.45,241.34,1.3431]
[1738253278189,2.8828566,241.44,241.38,4.1424]
[1738253278396,2.7662,241.48,241.38,4.1424]
[1738253278594,2.88264546,241.47,241.34,1.3431]
[1738253278893,2.88264546,241.46,241.37,4.1426]
[1738253279090,2.88264546,241.45,241.28,39.32761679]
[1738253279290,2.90976548,241.44,241.39,0.0285901]
[1738253279497,4.1422,241.4,241.39,0.0285901]
[1738253279698,0.02712002,241.44,241.28,36.48761679]
[1738253279994,4.1427,241.38,241.33,4.1433]
[1738253280193,3.59880609,241.46,241.28,36.48761679]
[1738253280497,17.76713675,241.44,241.27,1.3312]
[1738253280791,17.76713675,241.44,241.23,20.59243675]
[1738253280792,0.02696807,241.38,241.23,20.59243675]
[1738253280998,2.88173095,241.43,241.23,20.59243675]
[1738253280999,2.88173095,241.37,241.23,20.59243675]
[1738253281199,4.1436,241.32,241.28,4.1443]
[1738253281396,0.02913415,241.33,241.28,4.1443]
[1738253281698,0.02913415,241.33,241.23,20.59243675]
[1738253281996,4.1438,241.32,241.23,20.59243675]
[1738253282198,0.02913415,241.33,241.23,20.59243675]
[1738253282697,4.1438,241.31,241.26,4.1446]
[1738253283798,4.1436,241.32,241.27,4.1444]
[1738253284193,4.17047605,241.32,241.27,4.1444]
[1738253284399,0.02687605,241.32,241.31,4.1438]
[1738253284601,0.02687605,241.32,241.23,17.76713675]
[1738253284996,4.1438,241.31,241.23,17.76713675]
[1738253285196,0.02687605,241.32,241.2,1.3312]
[1738253285600,4.17067605,241.32,241.2,1.3312]
[1738253286295,4.1438,241.31,241.23,4.145]
[1738253286496,4.1438,241.31,241.2,1.3312]
[1738253286696,0.02687605,241.32,241.2,1.3312]
[1738253287292,4.17047605,241.32,241.23,4.145]
[1738253287494,0.02687605,241.32,241.23,17.76713675]
[1738253287697,0.02687605,241.32,241.2,1.3312]
[1738253287698,0.02687605,241.32,241.27,17.76713675]
[1738253287901,0.02687605,241.32,241.31,4.1438]
[1738253288606,2.8061,241.47,241.38,4.1424]
[1738253288806,2.8742636,241.46,241.31,17.76713675]
[1738253289003,4.1417,241.44,241.31,17.76713675]
[1738253289202,4.1417,241.44,241.39,4.1423]
[1738253289402,4.1412,241.46,241.31,17.76713675]
[1738253289604,4.1412,241.46,241.32,1.3772]
[1738253289803,0.02798155,241.41,241.36,0.02616692]
[1738253290005,0.02798155,241.41,241.4,4.1421]
[1738253290205,0.02798155,241.41,241.36,0.02616692]
[1738253290608,0.02798155,241.41,241.4,4.1422]
[1738253290809,0.02798155,241.41,241.36,0.02616692]
[1738253291699,0.02798155,241.41,241.38,4.1425]
[1738253292208,0.02798155,241.41,241.36,4.16896692]
[1738253292420,0.02798155,241.41,241.36,0.02616692]
[1738253292809,0.02798155,241.41,241.39,4.1424]
[1738253293413,0.02798155,241.41,241.36,0.02616692]
[1738253293712,0.02798155,241.41,241.4,4.1422]
[1738253294608,0.02798155,241.41,241.37,4.1426]
[1738253294813,0.02798155,241.41,241.36,0.02616692]
[1738253296315,0.02798155,241.41,241.38,4.1426]
[1738253297315,0.02798155,241.41,241.36,0.02616692]
[1738253297612,2.88137158,241.4,241.36,0.02616692]
[1738253297815,2.88129105,241.39,241.36,0.02616692]
[1738253298008,4.1426,241.38,241.36,0.02616692]
[1738253298816,4.1427,241.37,241.36,0.02616692]
[1738253299114,7.02576861,241.37,241.36,0.02616692]
[1738253299617,0.02798155,241.41,241.36,0.02616692]
[1738253299818,7.02607653,241.4,241.36,0.02616692]
[1738253300021,2.88367653,241.39,241.38,4.1426]
[1738253300220,2.88340105,241.39,241.36,0.02616692]
[1738253300416,0.02798155,241.41,241.36,0.02616692]
[1738253300616,2.88369078,241.4,241.36,0.02616692]
[1738253300816,2.88369078,241.39,241.37,4.1427]
[1738253301012,0.02798155,241.41,241.36,0.02616692]
[1738253301222,2.88200725,241.4,241.39,4.1423]
[1738253301719,4.1424,241.39,241.36,0.02616692]
[1738253302322,4.1426,241.38,241.36,0.02616692]
[1738253302717,0.02798155,241.41,241.36,0.02616692]
[1738253303019,4.1427,241.37,241.36,0.02616692]
[1738253303221,7.02185149,241.37,241.36,0.02616692]
[1738253303412,2.87915149,241.37,241.36,0.02616692]
[1738253304121,4.1422,241.4,241.36,4.16906692]
[1738253304420,2.87949817,241.39,241.36,4.16906692]
[1738253304613,2.87949817,241.38,241.36,4.16906692]
[1738253304814,0.02798155,241.41,241.36,0.02616692]
[1738253305017,2.87940587,241.4,241.36,0.02616692]
[1738253305217,2.87940587,241.39,241.36,0.02616692]
[1738253305422,2.87940587,241.38,241.36,0.02616692]
[1738253305623,7.02210587,241.37,241.36,0.02616692]
[1738253305823,2.87940587,241.37,241.26,11.11482099]
[1738253306023,2.87940587,241.36,241.26,11.11482099]
[1738253306216,2.87833155,241.35,241.26,11.11482099]
[1738253306421,7.02163155,241.34,241.3,4.1439]
[1738253306724,2.87833155,241.33,241.3,4.1439]
[1738253306926,4.1431,241.35,241.26,11.11482099]
[1738253307222,2.90687763,241.34,241.29,0.0200989]
[1738253307423,0.02796136,241.34,241.29,0.0200989]
[1738253307615,4.1435,241.33,241.29,4.1640989]
[1738253307818,0.02796136,241.34,241.29,0.0200989]
[1738253308225,2.87907614,241.33,241.29,0.0200989]
[1738253308421,0.02796136,241.34,241.29,0.0200989]
[1738253309018,4.17126136,241.34,241.31,4.1438]
[1738253309323,0.02796136,241.34,241.29,0.0200989]
[1738253309525,2.87902068,241.33,241.29,0.0200989]
[1738253309824,7.02256356,241.32,241.29,0.0200989]
[1738253310023,4.1436,241.32,241.29,0.0200989]
[1738253310621,4.1437,241.32,241.29,0.0200989]
[1738253312725,4.1438,241.31,241.29,0.0200989]
[1738253313227,0.02796136,241.34,241.29,0.0200989]
[1738253313534,4.1439,241.3,241.29,0.0200989]
[1738253313823,7.02159781,241.3,241.29,0.0200989]
[1738253314422,4.1445,241.27,241.23,4.1452]
[1738253314826,1.3484,241.33,241.2,11.11482099]
[1738253315123,4.1449,241.25,241.21,4.1454]
[1738253315426,0.02715097,241.25,241.17,141.8552725]
[1738253315821,4.1455,241.22,241.19,4.1458]
[1738253316027,0.02715097,241.25,241.19,4.1458]
[1738253317020,0.02715097,241.25,241.14,11.11482099]
[1738253317217,0.02715097,241.25,241.2,4.1456]
[1738253317618,0.02715097,241.25,241.21,4.1453]
[1738253318024,2.87116746,241.24,241.21,4.1453]
[1738253318225,2.87116746,241.23,241.21,4.1453]
[1738253318527,0.02715097,241.25,241.15,11.11482099]
[1738253318727,2.87066252,241.24,241.19,4.1457]
[1738253318928,0.02715097,241.25,241.15,11.11482099]
[1738253318929,2.87066252,241.23,241.15,11.11482099]
[1738253319131,4.1451,241.24,241.15,11.11482099]
[1738253319326,2.87011364,241.23,241.15,11.11482099]
[1738253319527,0.02715097,241.25,241.15,11.11482099]
[1738253319727,2.86944354,241.24,241.15,11.11482099]
[1738253319923,4.1459,241.19,241.15,4.1464]
[1738253320126,1.4418,241.24,241.08,152.97009349]
[1738253320331,0.03146616,241.19,241.11,11.11482099]
[1738253320830,4.17726616,241.19,241.11,11.11482099]